bitfinex/quotes_SOLUSD_20250815
["timestamp","ask_amount","ask_price","bid_price","bid_amount"]
[1755270261785,30.0,187.1,187.09,16.63649158]
[1755270262621,30.0,187.1,187.06,5.34587832]
[1755270262907,30.0,187.1,187.07,6.0655221]
[1755270263108,30.7,187.1,187.08,16.63649158]
[1755270263283,30.0,187.1,187.09,16.63649158]
[1755270264116,30.0,187.1,187.06,0.72]
[1755270264410,30.0,187.1,187.09,16.63649158]
[1755270264607,30.0,187.1,187.09,17.35649158]
[1755270264913,30.0,187.1,187.09,22.70151269]
[1755270265231,30.0,187.1,187.09,38.75502369]
[1755270265517,0.06,187.14,187.09,52.11757647]
[1755270265716,0.06,187.14,187.13,16.63649158]
[1755270267198,0.06,187.14,187.13,17.35649158]
[1755270268187,0.06,187.14,187.12,16.051794]
[1755270268408,0.06,187.14,187.13,17.35649158]
[1755270268881,0.06,187.14,187.13,22.70037016]
[1755270269089,0.06,187.14,187.13,21.98037016]
[1755270269640,0.06,187.14,187.13,22.70037016]
[1755270270617,0.06,187.14,187.12,16.051794]
[1755270270817,0.7,187.13,187.12,16.051794]
[1755270271018,0.06,187.14,187.12,38.03244975]
[1755270271201,0.7,187.13,187.03,0.75]
[1755270271400,16.63649158,187.12,187.06,2.140926]
[1755270271623,0.7,187.11,187.08,16.63649158]
[1755270271817,0.7,187.11,187.03,0.75]
[1755270271818,0.7,187.11,187.09,16.63649158]
[1755270272022,0.06,187.14,187.1,16.63649158]
[1755270272324,43.48,187.13,187.11,16.63649158]
[1755270272522,42.78,187.13,187.1,16.63649158]
[1755270272733,42.78,187.13,187.12,16.63649158]
[1755270273113,42.82,187.14,187.12,16.63649158]
[1755270273415,42.82,187.14,187.06,18.71057413]
[1755270273416,0.06,187.14,187.13,16.63649158]
[1755270273607,0.76,187.14,187.12,16.63649158]
[1755270273916,0.06,187.14,187.13,16.63649158]
[1755270274835,0.76,187.14,187.13,16.63649158]
[1755270275135,0.76,187.14,187.11,16.63649158]
[1755270275322,6.1036103,187.14,187.11,16.63649158]
[1755270275642,0.06,187.14,187.12,16.63649158]
[1755270275837,0.06,187.14,187.09,0.72]
[1755270276020,0.06,187.14,187.13,16.63649158]
[1755270277011,0.06,187.14,187.13,21.98037016]
[1755270277211,0.06,187.14,187.13,22.70037016]
[1755270277745,0.06,187.14,187.13,24.12038016]
[1755270277918,0.06,187.14,187.13,18.77650158]
[1755270278107,0.06,187.14,187.13,24.12038016]
[1755270278307,0.06,187.14,187.13,2.14001]
[1755270278508,0.06,187.14,187.13,16.63649158]
[1755270278723,0.76,187.14,187.13,16.63649158]
[1755270278960,0.76,187.14,187.1,8.76693185]
[1755270279163,0.06,187.14,187.12,16.63649158]
[1755270279318,0.7,187.13,187.1,3.42228]
[1755270279524,0.7,187.12,187.09,16.63649158]
[1755270279744,0.06,187.14,187.11,16.63649158]
[1755270280225,0.7,187.13,187.08,5.344957]
[1755270280425,5.40361234,187.14,187.1,16.63649158]
[1755270280630,0.76,187.14,187.11,10.401846]
[1755270280839,0.06,187.14,187.11,10.401846]
[1755270281151,0.76,187.14,187.11,10.401846]
[1755270281844,0.7,187.13,187.11,10.401846]
[1755270282045,0.06,187.14,187.12,10.401846]
[1755270282428,0.76,187.14,187.09,5.34500943]
[1755270282628,0.7,187.13,187.1,10.401846]
[1755270283029,0.06,187.14,187.11,10.401846]
[1755270283250,0.06,187.14,187.08,10.69018049]
[1755270283424,0.7,187.13,187.08,5.344957]
[1755270283635,43.4,187.12,187.06,0.03]
[1755270283833,43.4,187.12,187.08,10.401846]
[1755270284341,0.06,187.14,187.11,10.401846]
[1755270284548,0.06,187.14,187.13,10.401846]
[1755270285064,0.06,187.14,187.13,16.46572458]
[1755270288733,0.06,187.14,187.13,6.06387858]
[1755270288943,0.06,187.14,187.13,16.46572458]
[1755270290159,0.06,187.14,187.13,18.60573458]
[1755270290539,1e-08,187.16,187.13,18.60573458]
[1755270290729,0.06,187.18,187.15,36.401846]
[1755270290926,0.06,187.2,187.17,10.401846]
[1755270291145,0.06,187.2,187.19,10.401846]
[1755270291537,0.06,187.2,187.19,11.091846]
[1755270291859,0.06,187.2,187.19,16.43401171]
[1755270293263,0.06,187.2,187.19,15.74401171]
[1755270293655,0.06,187.2,187.19,10.401846]
[1755270293968,0.77,187.2,187.17,5.34269107]
[1755270294167,0.77,187.2,187.18,10.401846]
[1755270294759,0.77,187.2,187.19,2.139553]
[1755270295077,11.171846,187.2,187.15,10.401846]
[1755270295359,11.111846,187.19,187.14,20.803692]
[1755270295557,0.71,187.18,187.14,10.401846]
[1755270295863,0.71,187.17,187.13,11.111846]
[1755270296163,0.71,187.17,187.14,10.401846]
[1755270296363,0.71,187.16,187.13,11.111846]
[1755270296570,0.71,187.15,187.1,10.401846]
[1755270296871,0.71,187.14,187.11,10.401846]
[1755270297973,43.29,187.17,187.13,10.401846]
[1755270298146,0.71,187.16,187.13,10.401846]
[1755270298346,0.71,187.16,187.1,5.34470305]
[1755270298347,0.71,187.16,187.12,10.401846]
[1755270299144,0.71,187.15,187.11,10.401846]
[1755270300268,42.58,187.17,187.12,10.401846]
[1755270300567,52.981846,187.17,187.12,10.401846]
[1755270300760,0.71,187.19,187.14,10.401846]
[1755270300948,0.71,187.19,187.16,10.401846]
[1755270301143,42.64,187.2,187.16,10.401846]
[1755270301347,42.64,187.2,187.19,10.401846]
[1755270301569,0.06,187.2,187.19,0.69]
[1755270301770,0.06,187.2,187.19,11.091846]
[1755270302155,0.06,187.2,187.19,21.493692]
[1755270302353,0.06,187.22,187.19,21.493692]
[1755270302354,0.06,187.22,187.19,57.11159543]
[1755270302555,7.76118194,187.33,187.23,26.0]
[1755270302765,0.2,187.33,187.32,10.401846]
[1755270302966,0.2,187.33,187.32,22.02753782]
[1755270303885,1.39556822,187.38,187.35,26.0]
[1755270304048,0.06,187.4,187.35,10.93560634]
[1755270304259,0.06,187.42,187.41,26.0]
[1755270304457,0.06,187.42,187.41,36.401846]
[1755270304662,0.06,187.42,187.41,26.0]
[1755270304973,0.06,187.42,187.41,43.18977236]
[1755270305551,0.06,187.42,187.38,0.69]
[1755270305757,0.06,187.42,187.41,16.49977236]
[1755270306153,0.06,187.42,187.41,17.18977236]
[1755270306376,0.06,187.42,187.41,22.52566692]
[1755270306859,0.06,187.42,187.41,16.49977236]
[1755270307172,0.06,187.42,187.35,13.34385806]
[1755270307173,0.77,187.42,187.38,16.49977236]
[1755270307596,0.71,187.41,187.35,16.49977236]
[1755270307754,16.49977236,187.4,187.3,0.69]
[1755270308073,16.49977236,187.37,187.32,16.49977236]
[1755270308273,0.71,187.36,187.3,5.33898715]
[1755270308464,0.71,187.36,187.33,16.49977236]
[1755270308786,0.71,187.4,187.35,16.49977236]
[1755270308984,0.71,187.39,187.37,16.49977236]
[1755270309159,0.71,187.38,187.35,16.49977236]
[1755270309358,0.71,187.38,187.34,16.49977236]
[1755270309577,0.71,187.37,187.36,16.49977236]
[1755270309768,5.39560986,187.42,187.36,16.49977236]
[1755270309971,0.71,187.4,187.37,16.49977236]
[1755270310173,0.71,187.39,187.37,16.49977236]
[1755270310381,0.71,187.38,187.34,16.49977236]
[1755270310902,0.71,187.41,187.37,16.49977236]
[1755270311063,0.71,187.41,187.38,16.49977236]
[1755270311262,0.06,187.42,187.4,16.49977236]
[1755270311491,0.06,187.42,187.41,17.18977236]
[1755270312201,1e-08,187.42,187.41,17.18977236]
[1755270312360,1e-08,187.42,187.41,22.52566692]
[1755270313478,1e-08,187.42,187.41,21.83566692]
[1755270313679,1e-08,187.42,187.39,26.0]
[1755270313996,1e-08,187.42,187.35,0.69]
[1755270314307,17.20977236,187.41,187.33,5.33817327]
[1755270314473,16.49977236,187.4,187.35,16.49977236]
[1755270314792,16.49977236,187.38,187.3,5.33902829]
[1755270315089,0.71,187.37,187.34,16.49977236]
[1755270315312,17.20977236,187.41,187.35,16.49977236]
[1755270315465,42.44,187.4,187.37,16.49977236]
[1755270315868,42.44,187.4,187.31,0.71]
[1755270315869,0.71,187.4,187.38,16.49977236]
[1755270316273,0.71,187.4,187.37,16.49977236]
[1755270316470,42.42000001,187.42,187.37,16.49977236]
[1755270316471,0.71,187.39,187.37,16.49977236]
[1755270316687,1e-08,187.42,187.38,16.49977236]
[1755270316896,42.42000001,187.42,187.38,16.49977236]
[1755270317174,0.71,187.41,187.37,16.49977236]
[1755270317379,0.71,187.41,187.38,16.49977236]
[1755270317581,0.71,187.4,187.25,32.03989359]
[1755270317795,16.49977236,187.34,187.29,16.49977236]
[1755270317993,0.71,187.34,187.3,16.49977236]
[1755270318196,16.49977236,187.36,187.27,5.11588469]
[1755270318411,0.71,187.35,187.3,16.49977236]
[1755270318727,0.71,187.35,187.31,16.49977236]
[1755270318887,0.71,187.35,187.32,16.49977236]
[1755270319212,0.71,187.35,187.28,5.33959846]
[1755270319419,17.26977236,187.39,187.33,16.49977236]
[1755270319596,17.26977236,187.39,187.37,16.49977236]
[1755270319597,0.77,187.39,187.37,16.49977236]
[1755270319780,0.06,187.39,187.35,16.49977236]
[1755270319986,0.71,187.38,187.35,16.49977236]
[1755270320209,5.39647509,187.39,187.35,16.49977236]
[1755270320412,16.49977236,187.36,187.28,0.71]
[1755270320718,16.49977236,187.32,187.27,20.90565705]
[1755270321013,0.71,187.31,187.27,4.40588469]
[1755270321316,0.71,187.3,187.27,4.40588469]
[1755270321493,0.71,187.3,187.26,16.49977236]
[1755270321825,42.4,187.33,187.29,16.49977236]
[1755270321985,42.4,187.33,187.3,16.49977236]
[1755270322185,30.0,187.31,187.29,16.49977236]
[1755270322709,30.0,187.31,187.3,16.49977236]
[1755270322914,42.4,187.33,187.29,16.49977236]
[1755270323091,0.71,187.31,187.26,16.49977236]
[1755270323284,17.20977236,187.3,187.24,21.84051151]
[1755270323518,17.20977236,187.3,187.25,16.49977236]
[1755270323690,43.09,187.33,187.29,16.49977236]
[1755270323890,43.09,187.33,187.3,16.49977236]
[1755270324091,42.38,187.33,187.31,16.49977236]
[1755270324290,30.0,187.32,187.29,16.49977236]
[1755270324508,30.0,187.32,187.28,5.33959223]
[1755270324707,30.0,187.32,187.29,16.49977236]
[1755270325291,0.71,187.31,187.29,16.49977236]
[1755270325489,30.0,187.32,187.28,16.49977236]
[1755270325796,30.71,187.3,187.28,16.49977236]
[1755270326011,0.71,187.29,187.24,16.49977236]
[1755270326198,0.71,187.29,187.23,5.3410244]
[1755270326519,30.0,187.3,187.26,16.49977236]
[1755270326901,0.71,187.29,187.23,6.0510244]
[1755270327100,0.71,187.29,187.24,16.49977236]
[1755270327418,30.0,187.3,187.26,16.49977236]
[1755270327718,30.71,187.3,187.26,16.49977236]
[1755270328129,0.71,187.29,187.27,0.03]
[1755270328323,72.36,187.28,187.27,0.03]
[1755270328716,89.56977236,187.28,187.27,0.03]
[1755270328896,78.40959846,187.28,187.27,0.03]
[1755270329095,94.90937082,187.28,187.27,0.03]
[1755270329316,78.40959846,187.28,187.27,0.03]
[1755270329492,94.90937082,187.28,187.27,0.03]
[1755270330222,47.20977236,187.28,187.27,0.03]
[1755270330400,72.34,187.28,187.27,16.52977236]
[1755270330791,72.34,187.28,187.27,0.03]
[1755270331007,73.05,187.28,187.27,0.03]
[1755270331206,72.34,187.28,187.27,0.03]
[1755270331406,30.0,187.28,187.27,0.03]
[1755270331620,72.34,187.28,187.27,16.52977236]
[1755270331828,72.34,187.28,187.27,0.03]
[1755270331999,94.88937082,187.28,187.27,0.03]
[1755270332521,109.99558639,187.28,187.27,0.03]
[1755270332694,98.28450722,187.28,187.27,0.03]
[1755270332891,73.05,187.28,187.27,0.03]
[1755270333214,72.34,187.28,187.27,0.03]
[1755270334131,72.34,187.28,187.27,1.03]
[1755270334430,72.34,187.28,187.27,22.86965595]
[1755270334930,72.32,187.28,187.27,23.57965595]
[1755270335143,72.32,187.28,187.27,6.36988359]
[1755270335496,30.0,187.28,187.27,23.57965595]
[1755270335690,3.20534577,187.28,187.27,23.57965595]
[1755270335918,0.06,187.39,187.27,23.57965595]
[1755270335919,0.06,187.39,187.3,26.0]
[1755270336094,0.06,187.39,187.38,16.49977236]
[1755270336290,42.38,187.39,187.37,16.49977236]
[1755270336512,42.38,187.39,187.36,16.49977236]
[1755270336719,17.20977236,187.38,187.33,16.49977236]
[1755270336928,42.38,187.39,187.35,16.49977236]
[1755270337127,42.38,187.39,187.37,16.49977236]
[1755270337707,42.38,187.39,187.33,0.71]
[1755270337898,42.38,187.39,187.36,16.49977236]
[1755270338119,42.38,187.39,187.33,0.71]
[1755270338508,58.87977236,187.39,187.34,16.49977236]
[1755270338711,0.71,187.38,187.34,16.49977236]
[1755270338914,42.38,187.39,187.36,16.49977236]
[1755270339136,42.38,187.39,187.34,0.71]
[1755270339330,42.38,187.39,187.36,16.49977236]
[1755270339528,0.06,187.39,187.38,16.49977236]
[1755270339823,0.06,187.39,187.38,17.20977236]
[1755270339824,30.06,187.39,187.38,17.20977236]
[1755270340154,0.06,187.39,187.38,16.49977236]
[1755270340523,0.06,187.39,187.38,21.83652121]
[1755270340719,0.06,187.39,187.38,22.54652121]
[1755270340948,0.06,187.39,187.38,6.04674885]
[1755270341255,0.06,187.39,187.38,22.54652121]
[1755270341415,0.06,187.39,187.38,21.83652121]
[1755270341618,0.06,187.39,187.38,22.54652121]
[1755270341950,0.06,187.39,187.36,16.49977236]
[1755270342122,43.05,187.39,187.35,16.49977236]
[1755270342322,43.05,187.39,187.32,16.49977236]
[1755270342323,0.71,187.38,187.32,16.49977236]
[1755270342542,21.83680603,187.37,187.31,16.49977236]
[1755270342723,16.49977236,187.36,187.29,26.0]
[1755270342926,58.77977236,187.35,187.29,16.49977236]
[1755270343621,42.28,187.35,187.3,16.49977236]
[1755270343824,42.28,187.35,187.34,16.49977236]
[1755270344022,0.06,187.39,187.34,17.20977236]
[1755270344219,42.26,187.38,187.35,16.49977236]
[1755270344425,16.49977236,187.36,187.27,6.36983002]
[1755270344648,16.49977236,187.31,187.27,1.03]
[1755270344858,16.49977236,187.28,187.27,1.03]
[1755270345037,58.75977236,187.28,187.27,1.03]
[1755270345365,42.98,187.28,187.27,1.03]
[1755270345862,42.26,187.28,187.27,1.03]
[1755270346661,42.26,187.28,187.24,0.03]
[1755270346662,51.10621557,187.25,187.24,0.03]
[1755270346858,15.10621557,187.2,187.15,0.03]
[1755270347161,16.49977236,187.16,187.15,0.03]
[1755270347735,20.62548094,187.16,187.15,0.03]
[1755270348069,34.12570858,187.16,187.15,0.03]
[1755270348234,50.62548094,187.16,187.15,0.03]
[1755270348566,55.96850295,187.16,187.15,0.03]
[1755270348935,98.20850295,187.16,187.15,0.03]
[1755270349335,113.30656377,187.16,187.15,1e-08]
[1755270349537,15.10621557,187.15,187.13,1e-08]
[1755270349764,65.00322405,187.14,187.13,1e-08]
[1755270350061,91.72322405,187.14,187.13,1e-08]
[1755270350262,91.72322405,187.14,187.09,1e-08]
[1755270350263,15.10621557,187.13,187.09,1e-08]
[1755270350473,16.49977236,187.1,187.09,1e-08]
[1755270350641,21.84450779,187.1,187.09,1e-08]
[1755270351238,22.56450779,187.1,187.09,1e-08]
[1755270351963,15.10621557,187.08,187.05,1e-08]
[1755270352277,31.60598793,187.06,187.05,1e-08]
[1755270352767,37.67186625,187.06,187.05,1e-08]
[1755270352966,67.67186625,187.06,187.03,1e-08]
[1755270353164,67.67186625,187.06,186.92,0.03]
[1755270353165,16.49977236,187.04,186.92,0.03]
[1755270353365,16.49977236,187.01,186.94,0.71]
[1755270353741,16.49977236,186.95,186.92,0.03]
[1755270353960,42.96,187.0,186.92,0.03]
[1755270353961,46.49977236,186.93,186.92,0.03]
[1755270354161,30.0,186.93,186.92,0.03]
[1755270354564,46.49977236,186.93,186.92,0.03]
[1755270355174,46.49977236,186.93,186.92,0.74]
[1755270355476,30.0,186.93,186.92,0.74]
[1755270356677,46.49977236,186.93,186.92,0.03]
[1755270356848,72.24,186.93,186.92,0.03]
[1755270357044,72.24,186.93,186.92,0.74]
[1755270357374,30.0,186.93,186.92,17.23977236]
[1755270357547,30.0,186.93,186.92,0.74]
[1755270358477,30.0,186.93,186.92,17.23977236]
[1755270358988,30.0,186.93,186.92,0.74]
[1755270359186,94.08936846,186.93,186.92,0.03]
[1755270359373,72.24,186.93,186.92,0.03]
[1755270360276,88.73977236,186.93,186.92,0.03]
[1755270360479,94.08936846,186.93,186.92,0.03]
[1755270360685,109.91558403,186.93,186.92,0.03]
[1755270361194,109.19558403,186.93,186.92,0.03]
[1755270361361,46.49977236,186.93,186.92,0.03]
[1755270361690,72.24,186.93,186.92,0.03]
[1755270362479,72.24,186.93,186.92,0.74]
[1755270362785,72.74,186.93,186.92,0.74]
[1755270363563,72.24,186.93,186.92,0.74]
[1755270363765,109.91558403,186.93,186.92,0.03]
[1755270363980,93.41581167,186.93,186.92,0.03]
[1755270364168,109.91558403,186.93,186.92,0.03]
[1755270364352,109.17558403,186.93,186.92,0.03]
[1755270364754,94.06936846,186.93,186.92,0.03]
[1755270365491,109.89558403,186.93,186.92,0.03]
[1755270365788,109.89558403,186.93,186.91,0.1]
[1755270365789,15.10621557,186.92,186.91,0.1]
[1755270366089,62.32598793,186.92,186.91,0.1]
[1755270366690,62.32598793,186.92,186.91,1e-08]
[1755270366985,109.17587023,186.92,186.91,1e-08]
[1755270367188,61.60598792,186.91,186.9,0.03]
[1755270367694,45.10621556,186.91,186.9,0.03]
[1755270367877,72.21999999,186.91,186.9,0.03]
[1755270368067,29.99999999,186.91,186.9,17.23977236]
[1755270369082,29.99999999,186.91,186.9,22.59022714]
[1755270369664,29.99999999,186.91,186.9,17.23977236]
[1755270370001,89.41977235,186.91,186.9,0.03]
[1755270370173,72.19999999,186.91,186.9,0.03]
[1755270370573,94.04994088,186.91,186.9,0.03]
[1755270370783,72.19999999,186.91,186.9,0.03]
[1755270371097,94.04994088,186.91,186.9,0.03]
[1755270371297,94.76994088,186.91,186.9,0.03]
[1755270371469,77.55016852,186.91,186.9,0.03]
[1755270371661,94.04994088,186.91,186.9,0.03]
[1755270371865,77.55016852,186.91,186.9,0.03]
[1755270372067,94.04994088,186.91,186.9,0.03]
[1755270372362,78.05016852,186.91,186.9,0.03]
[1755270372597,94.54994088,186.91,186.9,0.03]
[1755270372925,110.37615645,186.91,186.9,0.03]
[1755270373093,15.10621557,186.9,186.89,0.03]
[1755270373267,62.32598793,186.9,186.88,0.03]
[1755270373471,74.52598793,186.89,186.88,0.03]
[1755270373992,74.52598793,186.89,186.88,1e-08]
[1755270374300,104.52598793,186.89,186.88,1e-08]
[1755270374996,109.876729,186.89,186.88,1e-08]
[1755270375435,31.60598793,186.87,186.86,0.03]
[1755270375701,73.78598793,186.87,186.86,0.03]
[1755270375874,74.45598793,186.87,186.86,0.03]
[1755270376078,74.45598793,186.87,186.86,1e-08]
[1755270376307,15.10621557,186.85,186.76,0.71]
[1755270376601,16.49977236,186.8,186.76,0.71]
[1755270376815,42.18,186.79,186.73,116.04876905]
[1755270376987,47.53377433,186.79,186.77,0.71]
[1755270377186,47.53377433,186.79,186.73,116.04876905]
[1755270377426,47.53377433,186.79,186.74,0.71]
[1755270377427,16.49977236,186.75,186.74,0.71]
[1755270377717,42.18,186.75,186.73,116.04876905]
[1755270378217,42.18,186.75,186.74,0.71]
[1755270378394,42.18,186.75,186.73,116.04876905]
[1755270378591,42.18,186.75,186.73,116.75876905]
[1755270378788,16.49977236,186.74,186.73,116.04876905]
[1755270379003,64.0345894,186.75,186.73,116.04876905]
[1755270379190,42.18,186.75,186.73,116.04876905]
[1755270379382,42.18,186.77,186.74,17.20977236]
[1755270379583,21.85169522,186.85,186.76,16.49977236]
[1755270379810,21.85169522,186.85,186.73,116.75876905]
[1755270379811,16.49977236,186.77,186.73,116.75876905]
[1755270379988,16.49977236,186.74,186.73,116.04876905]
[1755270380186,58.67977236,186.74,186.73,116.04876905]
[1755270380496,74.45598793,186.74,186.73,116.04876905]
[1755270381206,79.81102702,186.74,186.73,116.04876905]
[1755270381584,79.81102702,186.74,186.73,89.21818591]
[1755270381916,79.81102702,186.74,186.73,1e-08]
[1755270382281,89.81102702,186.74,186.73,1e-08]
[1755270382482,73.81125466,186.74,186.73,1e-08]
[1755270382786,26.0,186.62,186.61,14.15538989]
[1755270382985,114.67977236,186.62,186.61,7.66704855]
[1755270383219,120.03825483,186.62,186.61,7.66704855]
[1755270383425,135.8144704,186.62,186.61,1e-08]
[1755270383714,51.10621557,186.54,186.53,1.69886726]
[1755270384010,51.10621557,186.54,186.41,0.71]
[1755270384011,41.10621557,186.51,186.41,0.71]
[1755270384226,26.0,186.47,186.37,55.3656404]
[1755270384410,42.18,186.46,186.38,0.71]
[1755270384733,26.0,186.43,186.37,50.0]
[1755270385030,30.0,186.41,186.37,67.20977236]
[1755270385235,16.49977236,186.38,186.37,50.0]
[1755270385448,30.0,186.41,186.37,50.71]
[1755270385649,42.2,186.4,186.38,0.71]
[1755270385816,58.69977236,186.4,186.37,50.0]
[1755270386004,30.0,186.39,186.38,0.71]
[1755270386399,30.0,186.39,186.38,17.20977236]
[1755270387029,30.0,186.39,186.38,0.71]
[1755270387232,88.69977236,186.39,186.37,50.0]
[1755270387441,72.2,186.39,186.37,50.71]
[1755270387740,72.2,186.39,186.38,0.71]
[1755270388031,72.2,186.39,186.37,50.0]
[1755270388210,72.2,186.39,186.37,50.71]
[1755270388412,72.2,186.39,186.37,50.0]
[1755270388735,16.49977236,186.38,186.37,50.0]
[1755270388903,46.49977236,186.38,186.37,50.0]
[1755270389408,30.0,186.38,186.37,50.71]
[1755270389610,46.49977236,186.38,186.37,50.0]
[1755270389909,30.0,186.38,186.37,50.0]
[1755270390299,72.22,186.38,186.37,56.07567044]
[1755270390496,72.22,186.38,186.37,67.20977236]
[1755270390726,72.22,186.38,186.37,50.71]
[1755270391327,42.22,186.38,186.37,50.71]
[1755270391729,42.22,186.38,186.37,67.20977236]
[1755270392061,42.22,186.38,186.37,50.71]
[1755270392362,42.22,186.38,186.37,50.0]
[1755270393166,72.22,186.38,186.37,50.0]
[1755270393326,88.71977236,186.38,186.37,50.0]
[1755270393526,72.22,186.38,186.37,50.0]
[1755270393726,94.08515491,186.38,186.37,50.0]
[1755270393942,119.86137048,186.38,186.37,23.11322977]
[1755270394122,15.10621557,186.36,186.33,200.03]
[1755270394341,16.49977236,186.34,186.33,200.03]
[1755270394551,16.72977236,186.34,186.33,199.46]
[1755270395030,58.73977236,186.34,186.33,199.18085398]
[1755270395229,94.10630665,186.34,186.33,199.18085398]
[1755270395428,98.15630684,186.34,186.33,199.18085398]
[1755270395834,55.91630684,186.34,186.33,199.18085398]
[1755270396029,34.05000019,186.34,186.33,199.18085398]
[1755270396232,81.65653448,186.34,186.33,199.18085398]
[1755270396524,98.15630684,186.34,186.33,199.18085398]
[1755270396758,76.29000019,186.34,186.33,199.18085398]
[1755270397261,81.65653448,186.34,186.33,199.18085398]
[1755270397426,113.49252241,186.34,186.33,170.98838325]
[1755270397624,113.49252241,186.34,186.33,142.67675615]
[1755270397947,15.10621557,186.28,186.16,16.49977236]
[1755270398237,10.0,186.31,186.1,3.246615]
[1755270398238,42.47,186.27,186.1,3.246615]
[1755270398443,16.49977236,186.26,186.13,6.08258905]
[1755270398657,42.24,186.26,186.14,42.95]
[1755270398863,16.49977236,186.21,186.15,0.71]
[1755270399042,42.24,186.2,186.15,17.20977236]
[1755270399356,42.24,186.2,186.12,250.0]
[1755270399357,5.3711462,186.18,186.12,250.0]
[1755270399658,30.0,186.16,186.13,0.71]
[1755270399864,42.24,186.15,186.14,17.20977236]
[1755270400020,42.24,186.15,186.14,0.71]
[1755270400426,30.0,186.16,186.14,17.20977236]
[1755270400639,30.0,186.16,186.12,255.37272289]
[1755270400640,30.0,186.16,186.12,250.0]
[1755270400952,30.0,186.16,186.13,0.71]
[1755270401156,30.0,186.16,186.14,17.20977236]
[1755270401355,29.28,186.16,186.15,6.08201181]
[1755270401550,28.56,186.16,186.15,22.58178417]
[1755270401749,28.56,186.16,186.15,0.71]
[1755270401945,28.56,186.16,186.12,250.71]
[1755270402136,28.56,186.16,186.12,250.0]
[1755270402339,28.56,186.16,186.15,16.49977236]
[1755270402537,28.56,186.16,186.12,250.0]
[1755270402734,0.67,186.15,186.12,250.0]
[1755270402982,28.56,186.16,186.12,250.0]
[1755270403146,28.56,186.16,186.13,0.71]
[1755270403328,70.98,186.16,186.15,16.49977236]
[1755270403530,70.98,186.16,186.12,250.0]
[1755270403829,76.35174036,186.16,186.12,250.0]
[1755270404143,76.35176251,186.16,186.12,250.71]
[1755270404354,28.56,186.16,186.12,250.0]
[1755270404658,28.56,186.16,186.13,0.71]
[1755270404880,28.56,186.16,186.15,16.49977236]
[1755270405159,28.56,186.16,186.15,17.20977236]
[1755270405452,28.56,186.16,186.14,16.49977236]
[1755270405660,28.56,186.16,186.15,17.17977236]
[1755270405829,7.33110893,186.21,186.15,85.67977236]
[1755270406160,7.33110893,186.21,186.16,42.54]
[1755270406361,7.33110893,186.21,186.12,268.80504892]
[1755270406544,7.33110893,186.21,186.19,16.49977236]
[1755270406759,7.33110893,186.21,186.2,16.49977236]
[1755270407271,6.01711367,186.32,186.21,5.37028086]
[1755270407464,42.72,186.31,186.29,16.49977236]
[1755270407669,42.72,186.31,186.28,16.49977236]
[1755270407876,0.65,186.37,186.3,16.49977236]
[1755270408044,0.65,186.37,186.35,16.49977236]
[1755270408241,0.65,186.37,186.25,0.53691275]
[1755270408242,0.65,186.41,186.3,42.82]
[1755270408460,43.51,186.41,186.31,42.86]
[1755270408672,42.86,186.41,186.39,16.49977236]
[1755270408863,2.79744474,186.43,186.4,16.49977236]
[1755270409184,2.79744474,186.43,186.42,16.49977236]
[1755270409480,59.98977236,186.49,186.39,5.36509469]